bitfinex/quotes_SOLUSD_20250415
["timestamp","ask_amount","ask_price","bid_price","bid_amount"]
[1744695822649,6.0239177,132.05,132.0,0.063]
[1744695822849,6.0239177,132.03,132.0,0.063]
[1744695823242,9.42564206,132.03,132.0,0.063]
[1744695823439,9.42564206,132.02,132.0,0.063]
[1744695823656,9.42564206,132.03,132.0,0.063]
[1744695824442,7.5751,132.01,132.0,0.063]
[1744695825131,17.00044206,132.02,132.0,0.063]
[1744695826439,7.5748,132.02,132.0,0.063]
[1744695826643,17.00044206,132.02,132.0,0.063]
[1744695826947,9.42564206,132.01,132.0,0.063]
[1744695827341,17.00044206,132.02,132.0,0.063]
[1744695827962,88.9915,132.05,132.0,0.063]
[1744695827963,16.99984206,132.03,132.0,0.063]
[1744695828477,105.99044206,132.05,132.01,7.5751]
[1744695828774,29.348,132.08,132.01,9.42564206]
[1744695828775,9.42564206,132.06,132.01,9.42564206]
[1744695829068,9.42564206,132.05,132.01,9.42564206]
[1744695829965,9.42564206,132.05,132.0,9.48864206]
[1744695830767,7.5734,132.04,132.0,9.48864206]
[1744695831261,9.42564206,132.06,132.02,9.42564206]
[1744695831437,16.99814206,132.06,132.02,9.42564206]
[1744695831844,7.5718,132.07,132.02,9.42564206]
[1744695832143,88.3707,132.09,132.05,9.42564206]
[1744695832787,16.99824206,132.06,132.01,7.71716157]
[1744695832961,16.99824206,132.06,132.02,9.42564206]
[1744695833651,9.42564206,132.05,132.01,9.42564206]
[1744695833881,16.99824206,132.06,132.01,9.42564206]
[1744695834037,9.42564206,132.04,132.0,0.063]
[1744695834238,9.42564206,132.04,132.0,9.48864206]
[1744695834449,7.5726,132.06,132.0,9.48864206]
[1744695834848,7.5734,132.04,132.0,9.48864206]
[1744695835440,16.99904206,132.04,132.0,9.48864206]
[1744695836576,16.99904206,132.04,132.0,0.063]
[1744695836951,7.5734,132.04,132.0,9.48864206]
[1744695837173,7.5731,132.05,132.02,9.42564206]
[1744695838173,7.5731,132.05,132.01,9.42564206]
[1744695839477,16.99874206,132.05,132.0,9.48864206]
[1744695842070,7.5731,132.05,132.0,9.48864206]
[1744695842264,16.99874206,132.05,132.0,9.48864206]
[1744695843381,18.9303,132.07,132.0,9.48864206]
[1744695843382,16.99814206,132.06,132.01,9.42564206]
[1744695843543,7.5725,132.06,132.02,9.42564206]
[1744695845159,7.5725,132.06,132.02,6.02888869]
[1744695845968,13.60138869,132.06,132.01,6.02888869]
[1744695850063,13.60138869,132.06,132.01,13.60398869]
[1744695850869,7.5725,132.06,132.01,13.60398869]
[1744695851068,13.60138869,132.06,132.01,13.60398869]
[1744695852578,13.60138869,132.06,132.01,6.02888869]
[1744695855374,13.60138869,132.06,132.01,13.60388869]
[1744695857276,13.60058869,132.07,132.02,6.02888869]
[1744695859773,7.5728,132.05,132.01,13.60388869]
[1744695861274,13.60168869,132.05,132.0,13.80945026]
[1744695861860,7.5728,132.05,132.01,6.02888869]
[1744695862774,6.02888869,132.06,132.01,6.02888869]
[1744695863476,6.02888869,132.04,132.0,0.063]
[1744695863951,6.02888869,132.03,132.0,0.063]
[1744695864784,13.60348869,132.02,132.0,0.063]
[1744695865283,6.02888869,132.01,132.0,0.063]
[1744695865455,13.60348869,132.02,132.0,0.063]
[1744695867075,6.02888869,132.01,132.0,0.063]
[1744695867377,86.82888869,132.01,132.0,0.063]
[1744695869081,88.44258869,132.01,132.0,0.0001]
[1744695869380,96.01768869,132.01,132.0,0.0001]
[1744695870969,96.15985026,132.01,132.0,0.0001]
[1744695871974,115.09382226,132.01,132.0,0.0001]
[1744695872167,44.64964886,131.98,131.97,0.0001]
[1744695872369,44.64964886,131.98,131.95,0.063]
[1744695872370,26.0,131.96,131.95,0.063]
[1744695872684,32.17105026,131.96,131.95,0.063]
[1744695873482,39.74905026,131.96,131.95,0.063]
[1744695874081,33.578,131.96,131.95,0.063]
[1744695874284,7.578,131.96,131.95,0.063]
[1744695874969,7.5776,131.97,131.95,0.063]
[1744695875364,6.17105026,131.96,131.95,0.063]
[1744695875576,13.74905026,131.96,131.95,0.063]
[1744695875768,39.60688869,131.96,131.95,0.063]
[1744695876278,94.40688869,131.96,131.95,0.063]
[1744695876670,7.5775,131.97,131.95,0.063]
[1744695877285,13.60638869,131.97,131.95,0.063]
[1744695877985,26.5182,131.99,131.95,0.063]
[1744695878187,6.02888869,131.97,131.95,0.063]
[1744695879588,7.578,131.96,131.95,0.063]
[1744695879992,13.60688869,131.96,131.95,0.063]
[1744695882092,39.60688869,131.96,131.95,0.063]
[1744695882895,7.578,131.96,131.95,0.063]
[1744695883395,7.5774,131.97,131.95,0.063]
[1744695883571,13.60628869,131.97,131.95,0.063]
[1744695885240,7.5774,131.97,131.95,0.063]
[1744695886496,80.8,131.98,131.95,6.09188869]
[1744695886695,7.5755,132.01,131.97,6.02888869]
[1744695886885,7.5755,132.01,131.98,6.02888869]
[1744695887383,13.60438869,132.01,131.97,6.02888869]
[1744695887889,13.60438869,132.01,131.96,6.02888869]
[1744695888097,13.60438869,132.01,131.95,0.063]
[1744695888098,6.02888869,131.98,131.95,0.063]
[1744695888405,13.60608869,131.98,131.95,0.063]
[1744695889714,6.02888869,131.97,131.95,0.063]
[1744695890803,7.578,131.96,131.95,0.063]
[1744695892291,13.60688869,131.96,131.95,0.063]
[1744695895304,7.578,131.96,131.95,0.063]
[1744695896005,13.60688869,131.96,131.95,0.063]
[1744695902212,88.3777,131.97,131.95,0.063]
[1744695903014,106.8,131.96,131.95,0.063]
[1744695903315,131.90502226,131.96,131.95,0.0001]
[1744695903901,139.48302226,131.96,131.95,0.0001]
[1744695904113,139.48302226,131.96,131.92,0.063]
[1744695904114,6.02888869,131.93,131.92,0.063]
[1744695906021,13.60858869,131.93,131.92,0.063]
[1744695906700,7.5797,131.93,131.92,0.063]
[1744695907798,13.60858869,131.93,131.92,0.063]
[1744695908722,13.75075026,131.93,131.92,0.063]
[1744695908892,13.75075026,131.93,131.92,0.0001]
[1744695909220,7.5792,131.94,131.92,0.0001]
[1744695909513,88.3789,131.95,131.92,0.0001]
[1744695910224,88.3763,131.99,131.94,6.02888869]
[1744695910434,94.40518869,131.99,131.94,6.02888869]
[1744695912696,94.40518869,131.99,131.94,13.60798869]
[1744695912914,80.8,131.99,131.95,6.02888869]
[1744695913219,90.22969847,131.99,131.95,9.42969847]
[1744695913519,97.80609847,131.99,131.95,9.42969847]
[1744695914102,97.80609847,131.99,131.95,17.00829847]
[1744695915504,80.8,131.99,131.98,9.42969847]
[1744695915821,17.00449847,132.02,131.98,9.42969847]
[1744695916023,7.5748,132.02,131.98,9.42969847]
[1744695916828,80.83,132.03,131.99,9.42969847]
[1744695917203,88.404,132.03,131.99,9.42969847]
[1744695917529,97.83369847,132.03,131.98,9.42969847]
[1744695917736,9.42969847,132.01,131.96,10.93069847]
[1744695917922,9.42969847,132.0,131.96,10.93069847]
[1744695918637,17.00699847,131.98,131.94,10.58]
[1744695918807,17.00699847,131.98,131.94,20.00969847]
[1744695919706,17.00699847,131.98,131.94,10.58]
[1744695920148,9.42969847,131.97,131.92,1.76596157]
[1744695920324,9.42969847,131.97,131.92,11.19566004]
[1744695920509,9.42969847,131.97,131.92,1.76596157]
[1744695920811,9.42969847,131.97,131.92,11.19566004]
[1744695921036,7.578,131.96,131.92,11.19566004]
[1744695921219,17.00719847,131.97,131.92,18.77596004]
[1744695921421,17.00719847,131.97,131.92,11.19566004]
[1744695921850,9.42969847,131.95,131.92,1.6238]
[1744695923032,17.00719847,131.97,131.93,9.42969847]
[1744695923341,88.3771,131.98,131.95,9.42969847]
[1744695923931,80.8,131.98,131.95,9.42969847]
[1744695924613,88.3769,131.98,131.95,9.42969847]
[1744695926439,80.8,131.98,131.95,9.42969847]
[1744695928328,88.3769,131.98,131.95,9.42969847]
[1744695928527,9.42969847,131.97,131.92,1.6238]
[1744695928727,88.3769,131.98,131.94,9.42969847]
[1744695928934,80.8,131.98,131.95,9.42969847]
[1744695929633,88.377,131.98,131.94,9.42969847]
[1744695929824,97.80669847,131.98,131.93,9.42969847]
[1744695930421,88.377,131.98,131.94,9.42969847]
[1744695930817,80.8,131.98,131.94,17.00879847]
[1744695931027,82.3357,132.03,131.97,9.42969847]
[1744695931225,9.42969847,132.02,131.97,9.42969847]
[1744695931824,90.25969847,132.03,131.99,9.42969847]
[1744695932042,80.83,132.03,131.99,9.42969847]
[1744695932234,90.25969847,132.03,131.99,9.42969847]
[1744695932439,97.83399847,132.03,131.99,9.42969847]
[1744695932643,97.83399847,132.03,131.98,9.42969847]
[1744695932948,9.42969847,132.02,131.97,11.09319847]
[1744695933318,116.76899847,132.03,131.98,9.42969847]
[1744695933536,97.83399847,132.03,131.98,9.42969847]
[1744695934447,97.83399847,132.03,131.98,17.00629847]
[1744695935137,88.4043,132.03,131.99,9.42969847]
[1744695935330,9.42969847,132.02,131.98,9.42969847]
[1744695935528,9.42969847,132.02,131.97,11.09319847]
[1744695936243,9.42969847,132.01,131.97,1.6635]
[1744695936445,7.5756,132.01,131.97,11.09319847]
[1744695937725,17.00529847,132.01,131.97,1.6635]
[1744695940162,17.00449847,132.02,131.97,18.67029847]
[1744695940331,97.83389847,132.03,131.98,9.42969847]
[1744695941446,80.83,132.03,132.0,9.42969847]
[1744695941855,97.83379847,132.03,131.98,9.42969847]
[1744695942850,98.30112783,132.03,131.97,19.2797894]
[1744695944029,9.89702783,132.01,131.97,1.6635]
[1744695945158,9.89702783,132.01,131.97,9.2408]
[1744695945460,107.3391,132.03,131.97,19.13782783]
[1744695945461,88.4041,132.03,131.97,19.13782783]
[1744695945763,98.30112783,132.03,131.98,9.89702783]
[1744695946051,98.30112783,132.03,131.97,19.13782783]
[1744695946554,80.83,132.03,131.98,17.90011254]
[1744695946767,88.404,132.03,131.99,9.89702783]
[1744695947148,80.83,132.03,131.99,9.89702783]
[1744695947443,80.83,132.03,132.01,9.89702783]
[1744695948853,80.83,132.03,132.01,17.47172783]
[1744695950762,80.83,132.03,132.01,7.5747]
[1744695954762,90.72702783,132.03,131.99,9.89702783]
[1744695954961,90.72702783,132.03,131.98,10.0391894]
[1744695955674,9.89702783,132.0,131.97,1.6635]
[1744695956535,17.47282783,132.0,131.97,1.6635]
[1744695957037,17.47242783,132.01,131.97,9.2408]
[1744695957962,7.5754,132.01,131.97,19.13782783]
[1744695959559,7.5754,132.01,131.97,11.56052783]
[1744695960563,9.89702783,132.0,131.95,34.4584894]
[1744695960855,9.89702783,132.0,131.95,28.1976894]
[1744695961238,17.47242783,132.01,131.96,9.89702783]
[1744695961440,7.5746,132.02,131.96,17.47502783]
[1744695961639,17.47162783,132.02,131.97,9.89702783]
[1744695962873,9.89702783,132.0,131.95,20.6191894]
[1744695963967,26.5111,132.02,131.93,20.62273357]
[1744695963968,9.89702783,131.97,131.93,1.5466]
[1744695964749,17.47442783,131.98,131.93,19.02322783]
[1744695965770,17.47442783,131.98,131.93,11.44362783]
[1744695966068,9.89702783,131.97,131.93,1.5466]
[1744695967061,17.47462783,131.97,131.93,1.5466]
[1744695967776,17.47412783,131.98,131.93,19.02302783]
[1744695971172,13.91544137,131.98,131.93,15.46434137]
[1744695972063,6.33834137,131.97,131.93,1.5466]
[1744695972257,6.33834137,131.97,131.93,9.1262]
[1744695972458,6.33834137,131.98,131.93,15.46454137]
[1744695972661,13.91534137,131.98,131.93,15.46454137]
[1744695973948,6.33834137,131.96,131.93,1.5466]
[1744695976175,13.91684137,131.96,131.93,1.5466]
[1744695977573,13.91684137,131.96,131.92,0.0001]
[1744695977574,6.33834137,131.94,131.92,0.0001]
[1744695977747,87.13834137,131.93,131.92,0.0001]
[1744695978459,94.71804137,131.93,131.92,0.0001]
[1744695979185,13.91804137,131.93,131.92,0.0001]
[1744695980751,32.99417494,131.93,131.92,0.0001]
[1744695981249,36.57258303,131.93,131.92,0.0001]
[1744695982870,36.57258303,131.93,131.89,0.063]
[1744695982871,44.933972,131.9,131.89,0.063]
[1744695983177,6.58936157,131.88,131.87,0.0001]
[1744695983380,36.82286049,131.88,131.87,0.0001]
[1744695984081,28.99288303,131.87,131.86,0.0001]
[1744695984282,0.14216157,131.87,131.86,0.0001]
[1744695984578,7.72536157,131.87,131.86,0.0001]
[1744695984775,17.64211103,131.87,131.86,0.0001]
[1744695985158,36.57608303,131.87,131.86,0.0001]
[1744695986678,36.58584487,131.87,131.86,0.0001]
[1744695988753,36.72800644,131.87,131.86,0.0001]
[1744695988959,18.933972,131.84,131.83,0.063]
[1744695989174,28.8604833,131.84,131.83,0.063]
[1744695989577,9.9265113,131.84,131.83,0.063]
[1744695990154,9.9266454,131.84,131.83,0.063]
[1744695990457,18.79181043,131.83,131.81,0.063]
[1744695990660,10.06880697,131.82,131.81,0.063]
[1744695990887,17.65490697,131.82,131.81,0.063]
[1744695992690,36.58887897,131.82,131.81,0.063]
[1744695993988,36.58887897,131.82,131.81,0.0001]
[1744695993989,46.65768594,131.82,131.81,0.0001]
[1744695994172,46.65768594,131.82,131.8,0.0001]
[1744695994173,0.14216157,131.81,131.8,0.0001]
[1744695994370,19.99545237,131.81,131.8,0.0001]
[1744695994781,27.58205237,131.81,131.8,0.0001]
[1744695995297,46.65818594,131.81,131.8,0.0001]
[1744695996281,46.51602437,131.81,131.8,0.0001]
[1744695996476,17.65540697,131.81,131.8,0.0001]
[1744695996863,17.5132454,131.81,131.8,0.0001]
[1744695997820,10.54216157,131.83,131.8,0.0001]
[1744695997967,7.5862,131.82,131.8,0.0001]
[1744695998167,27.9123454,131.83,131.8,0.0001]
[1744695998869,17.9857,131.83,131.8,9.9267454]
[1744695999066,7.5851,131.84,131.81,9.9266454]
[1744695999265,7.5838,131.86,131.83,9.9266454]
[1744695999466,7.5838,131.86,131.84,9.9266454]
[1744695999668,7.5835,131.87,131.84,9.9266454]
[1744695999886,7.5828,131.88,131.85,9.9266454]
[1744696000380,7.5828,131.88,131.82,0.14216157]
[1744696000781,7.582,131.89,131.85,9.9266454]
[1744696000974,0.03,131.9,131.87,9.9266454]
[1744696001185,0.03,131.9,131.88,9.9266454]
[1744696001378,0.03,131.9,131.89,9.9266454]
[1744696001805,0.03,131.9,131.89,10.06880697]
[1744696001998,0.03,131.9,131.89,29.14494054]
[1744696002207,80.8,131.94,131.91,6.204]
[1744696002415,80.8,131.94,131.93,9.9266454]
[1744696002902,80.8,131.94,131.91,6.204]
[1744696003099,88.3792,131.94,131.91,6.204]
[1744696003314,90.7266454,131.93,131.87,13.92906157]
[1744696003616,90.7266454,131.93,131.88,9.9266454]
[1744696004495,88.3798,131.93,131.89,9.9266454]
[1744696005911,80.8,131.93,131.9,9.9266454]
[1744696006418,88.3799,131.93,131.9,9.9266454]
[1744696008509,88.3799,131.93,131.88,7.5822]
[1744696008510,98.3065454,131.93,131.88,9.9266454]
[1744696011211,80.8,131.92,131.88,9.9266454]
[1744696015115,7.5809,131.91,131.88,9.9266454]
[1744696016119,7.5809,131.91,131.87,16.1306454]
[1744696016316,7.5809,131.91,131.87,9.9266454]
[1744696016513,17.5075454,131.91,131.87,9.9266454]
[1744696016909,17.5075454,131.91,131.86,11.4432454]
[1744696017308,9.9266454,131.9,131.86,1.5166]
[1744696017522,9.9266454,131.9,131.85,9.9266454]
[1744696017815,9.9266454,131.88,131.83,9.9896454]
[1744696018318,90.7266454,131.89,131.85,9.9266454]
[1744696019624,80.8,131.89,131.87,9.9266454]
[1744696019922,80.8,131.89,131.88,9.9266454]
[1744696021828,80.8,131.89,131.85,33.5841]
[1744696022016,88.382,131.89,131.86,9.9266454]
[1744696022325,88.382,131.89,131.85,35.9266454]
[1744696029611,88.382,131.89,131.86,9.9266454]
[1744696030445,90.7266454,131.88,131.83,0.063]
[1744696030631,9.9266454,131.87,131.83,9.9896454]
[1744696031332,9.9266454,131.87,131.83,0.063]
[1744696031636,9.9266454,131.85,131.83,0.063]
[1744696032215,80.8,131.84,131.83,0.063]
[1744696032917,9.9266454,131.84,131.83,0.063]
[1744696033535,17.5115454,131.84,131.83,0.063]
[1744696034234,80.94216157,131.83,131.8,0.0001]
[1744696034440,9.9266454,131.81,131.8,0.0001]
[1744696034638,28.71845583,131.81,131.8,0.0001]
[1744696034820,39.07158594,131.81,131.8,0.0001]
[1744696035623,46.65818594,131.81,131.8,0.0001]
[1744696037939,17.65540697,131.81,131.8,0.0001]
[1744696038130,17.5132454,131.81,131.8,0.0001]
[1744696038334,7.5855,131.83,131.8,0.0001]
[1744696038529,28.8863454,131.86,131.82,9.9266454]
[1744696038733,0.1556575,131.87,131.83,9.9266454]
[1744696039031,0.1556575,131.87,131.84,9.9266454]
[1744696039243,0.1556575,131.87,131.85,9.9266454]
[1744696040235,7.7388575,131.87,131.85,9.9266454]
[1744696040439,7.7388575,131.87,131.84,9.9266454]
[1744696041037,0.1556575,131.87,131.84,9.9266454]
[1744696041243,0.1556575,131.87,131.84,15.86839411]
[1744696041437,0.1556575,131.87,131.85,15.86839411]
[1744696042325,7.7390575,131.87,131.84,15.86839411]
[1744696042653,15.86839411,131.85,131.8,10.4001]
[1744696042846,96.66839411,131.86,131.81,15.86839411]
[1744696043222,80.8,131.86,131.82,15.86839411]
[1744696043653,7.5843,131.85,131.82,15.86839411]
[1744696044147,88.3839,131.86,131.83,15.86839411]
[1744696044844,15.86839411,131.85,131.8,26.26849411]
[1744696045161,99.59181043,131.84,131.8,15.86849411]
[1744696045349,15.86839411,131.81,131.8,0.0001]
[1744696045531,15.86839411,131.83,131.8,0.0001]
[1744696045732,7.5861,131.82,131.8,0.0001]
[1744696045934,23.45449411,131.82,131.8,0.0001]
[1744696046822,88.3857,131.83,131.8,0.0001]
[1744696047030,88.3857,131.83,131.8,15.86849411]
[1744696047339,88.3857,131.83,131.81,15.86839411]
[1744696047739,88.3857,131.83,131.8,0.0001]
[1744696048038,88.3857,131.83,131.81,15.86839411]
[1744696048848,80.8,131.83,131.82,15.86839411]
[1744696051150,80.8,131.83,131.8,0.0001]
[1744696051347,80.8,131.83,131.81,15.86839411]
[1744696052356,88.3856,131.83,131.8,15.86849411]
[1744696053450,88.3856,131.83,131.8,0.0001]
[1744696054129,80.8,131.83,131.8,15.86849411]
[1744696054332,80.8,131.83,131.81,15.86839411]
[1744696056361,104.25409411,131.83,131.8,0.0001]
[1744696056547,15.86839411,131.82,131.8,0.0001]
[1744696058666,23.45499411,131.81,131.8,0.0001]
[1744696059868,7.5866,131.81,131.8,0.0001]
[1744696060864,23.45449411,131.82,131.8,0.0001]
[1744696064476,80.8,131.83,131.81,15.86839411]
[1744696064671,88.3855,131.83,131.81,15.86839411]
[1744696064848,88.3855,131.83,131.8,15.86849411]
[1744696065166,88.3855,131.83,131.8,9.92442166]
[1744696065742,98.30982166,131.83,131.8,0.0001]
[1744696067170,104.2694717,131.83,131.8,0.0001]
[1744696068978,96.6839717,131.82,131.8,0.0001]
[1744696069770,7.5866,131.81,131.8,0.0001]
[1744696070141,59.94137697,131.81,131.8,0.0001]
[1744696070463,18.933972,131.79,131.78,0.063]
[1744696070873,34.8179437,131.79,131.78,0.063]
[1744696071341,30.07916157,131.78,131.77,0.063]
[1744696071546,29.937,131.78,131.77,0.063]
[1744696071875,29.937,131.78,131.77,15.9469717]
[1744696072673,29.937,131.78,131.77,45.9469717]
[1744696073261,37.5254,131.78,131.77,30.063]
[1744696075777,29.937,131.78,131.77,30.063]
[1744696076076,29.937,131.78,131.77,0.063]
[1744696076377,29.937,131.78,131.77,15.9469717]
[1744696078870,37.5254,131.78,131.77,30.063]
[1744696079071,37.5254,131.78,131.77,0.063]
[1744696080481,53.55153327,131.78,131.77,0.063]
[1744696080653,72.48550527,131.78,131.77,0.063]
[1744696080860,0.14216157,131.76,131.75,0.063]
[1744696081172,16.02613327,131.76,131.75,0.063]
[1744696081686,34.96010527,131.76,131.75,0.063]
[1744696082259,34.96010527,131.76,131.69,0.063]
[1744696082469,15.8839717,131.73,131.69,0.063]
[1744696082787,7.5918,131.72,131.71,0.063]
[1744696083075,23.4757717,131.72,131.71,0.063]
[1744696084279,23.61793327,131.72,131.71,0.063]
[1744696084490,0.14216157,131.71,131.69,0.063]
[1744696084677,15.8839717,131.7,131.69,0.063]
[1744696085378,23.4769717,131.7,131.69,0.063]
[1744696086080,7.593,131.7,131.69,0.063]
[1744696086587,23.4769717,131.7,131.69,0.063]
[1744696087157,23.61913327,131.7,131.69,0.063]
[1744696088285,7.593,131.7,131.69,0.063]
[1744696088868,88.3925,131.71,131.69,0.063]
[1744696089068,80.8,131.71,131.69,0.063]
[1744696089272,80.8,131.71,131.69,15.9469717]
[1744696090296,80.8,131.71,131.69,23.5401717]
[1744696090597,80.8,131.71,131.7,15.8839717]
[1744696091494,10.4,131.75,131.7,16.02613327]
[1744696091702,80.8,131.76,131.74,15.8839717]
[1744696092086,88.3896,131.76,131.73,15.8839717]
[1744696092489,88.3896,131.76,131.72,15.8839717]
[1744696094002,88.3896,131.76,131.73,15.8839717]
[1744696094300,80.8,131.76,131.73,15.8839717]
[1744696096204,88.3896,131.76,131.73,15.8839717]
[1744696098893,88.3896,131.76,131.72,15.8839717]
[1744696101011,88.3896,131.76,131.69,12.0497]
[1744696101012,80.8,131.76,131.73,15.8839717]
[1744696101310,80.8,131.76,131.74,9.93419725]
[1744696101503,80.8,131.76,131.73,9.93419725]
[1744696102807,88.3896,131.76,131.73,9.93419725]
[1744696104116,80.8,131.76,131.73,9.93419725]
[1744696106616,88.3895,131.76,131.73,9.93419725]
[1744696107118,29.937,131.78,131.75,9.93419725]
[1744696107315,29.937,131.78,131.77,9.93419725]
[1744696113316,29.937,131.78,131.76,9.93419725]
[1744696113518,37.5254,131.78,131.74,9.93419725]
[1744696113713,118.3254,131.78,131.74,9.93419725]
[1744696114917,118.3254,131.78,131.75,9.93419725]
[1744696115517,110.737,131.78,131.75,17.52419725]
[1744696115721,110.737,131.78,131.76,9.93419725]
[1744696116513,118.3254,131.78,131.76,9.93419725]
[1744696117693,118.3254,131.78,131.75,9.93419725]
[1744696117896,118.3254,131.78,131.74,9.93419725]
[1744696118111,118.3254,131.78,131.76,9.93419725]
[1744696118306,110.737,131.78,131.76,9.93419725]
[1744696118528,110.737,131.78,131.77,9.93419725]
[1744696120222,110.737,131.78,131.77,17.52309725]
[1744696122613,29.937,131.78,131.77,17.52309725]
[1744696124021,29.937,131.78,131.77,9.93419725]
[1744696125019,29.937,131.78,131.77,17.52309725]
[1744696126928,29.937,131.78,131.77,9.93419725]
[1744696128222,29.937,131.78,131.74,18.0106]
[1744696128426,29.937,131.78,131.75,9.93419725]
[1744696129004,29.937,131.78,131.75,17.52419725]
[1744696130029,29.937,131.78,131.76,9.93419725]
[1744696133546,29.937,131.78,131.75,7.59]
[1744696133744,37.5256,131.78,131.74,10.42]
[1744696133912,47.45979725,131.78,131.73,17.52509725]
[1744696136148,9.93419725,131.77,131.7,16.70086157]
[1744696136428,9.93419725,131.76,131.71,9.93419725]
[1744696137235,7.5901,131.75,131.71,9.93419725]
[1744696137740,7.5901,131.75,131.72,9.93419725]
[1744696138644,7.5896,131.76,131.73,9.93419725]
[1744696138947,36.0517,131.78,131.74,9.93419725]
[1744696139123,36.0517,131.78,131.75,9.93419725]
[1744696139439,29.937,131.78,131.77,9.93419725]
[1744696140133,29.937,131.78,131.75,7.5898]
[1744696140336,29.937,131.78,131.76,9.93419725]
[1744696140734,29.937,131.78,131.75,7.5898]
[1744696141034,29.937,131.78,131.76,9.93419725]
[1744696141541,37.5254,131.78,131.75,26.0]
[1744696141739,47.45959725,131.78,131.74,9.93419725]
[1744696141917,90.87635882,131.77,131.72,9.93419725]
[1744696142238,80.8,131.77,131.74,9.93419725]
[1744696142629,80.8,131.77,131.75,9.93419725]
[1744696144341,29.937,131.78,131.76,9.93419725]
[1744696144515,29.937,131.78,131.77,9.93419725]
[1744696145447,29.937,131.78,131.76,9.93419725]
[1744696145939,29.937,131.78,131.75,35.93419725]
[1744696146239,29.937,131.78,131.77,9.93419725]
[1744696148244,29.937,131.78,131.77,17.52309725]
[1744696149437,29.937,131.78,131.77,9.93419725]
[1744696153846,29.937,131.78,131.77,17.52309725]
[1744696155241,29.937,131.78,131.77,9.93419725]
[1744696155539,29.937,131.78,131.76,9.93419725]
[1744696155748,37.5255,131.78,131.74,20.33419725]
[1744696156041,9.93419725,131.77,131.71,7.5921]
[1744696156245,9.93419725,131.77,131.72,9.93419725]
[1744696156422,9.93419725,131.76,131.71,9.93419725]
[1744696157348,17.52409725,131.76,131.71,17.52619725]
[1744696157541,7.5899,131.76,131.72,9.93419725]
[1744696159552,7.5899,131.76,131.73,9.93419725]
[1744696160154,7.5892,131.77,131.74,9.93419725]
[1744696161151,7.5892,131.77,131.73,9.93419725]
[1744696162060,9.93419725,131.75,131.7,20.33419725]
[1744696162356,97.37845882,131.76,131.71,9.93419725]
[1744696163158,17.52429725,131.75,131.7,20.33419725]
[1744696163459,17.52429725,131.75,131.69,0.063]
[1744696163460,9.93419725,131.73,131.69,0.063]
[1744696163830,9.93419725,131.73,131.69,9.99719725]
[1744696164151,9.93419725,131.72,131.69,0.063]
[1744696164534,11.59565882,131.73,131.69,0.063]
[1744696164729,11.59565882,131.73,131.69,9.99719725]
[1744696165034,1.5193,131.73,131.69,9.99719725]
[1744696165472,7.5918,131.72,131.69,9.99719725]
[1744696168757,17.52599725,131.72,131.69,0.063]
[1744696169158,13.95569011,131.72,131.69,0.063]
[1744696170552,7.5918,131.72,131.69,0.063]
[1744696170741,7.5918,131.72,131.69,6.42689011]
[1744696171158,88.3918,131.72,131.69,0.063]
[1744696171451,113.73529011,131.72,131.69,0.063]
[1744696171655,88.3918,131.72,131.69,0.063]
[1744696175463,94.75569011,131.72,131.69,0.063]
[1744696178258,87.30605168,131.71,131.69,0.063]
[1744696178556,7.593,131.7,131.69,0.063]
[1744696182766,32.74870054,131.7,131.69,0.063]
[1744696182978,33.03302368,131.7,131.69,0.063]
[1744696183868,7.593,131.7,131.69,0.063]
[1744696184665,94.4177,131.71,131.69,0.063]
[1744696184845,88.3926,131.71,131.69,0.063]
[1744696185661,80.8,131.71,131.69,6.42689011]
[1744696185855,80.8,131.71,131.7,6.36389011]
[1744696186564,80.8,131.71,131.69,6.42689011]
[1744696190070,7.592,131.72,131.69,6.42689011]
[1744696190283,13.95589011,131.72,131.69,0.063]
[1744696191277,7.592,131.72,131.69,0.063]
[1744696191476,6.36389011,131.7,131.69,0.063]
[1744696191671,6.36389011,131.71,131.69,0.063]